Cogmind - Beta 14 @@@ ROGUE MODE // 2025.03.20 @ 12:34:53 Player: kat Result: Self-destructed Performance ------------- Evolutions (2) 1000 Regions Visited (5) 1000 Robots Destroyed (16) 80 Value Destroyed (284) 284 Prototype IDs (24) 480 Alien Tech Used (0) 0 Bonus (300) 300 TOTAL SCORE: 3144 Bonus ------- Aligned with FarCom 300 Cogmind --------- Core Integrity 415/550 Matter 170/300 Energy 265/265 System Corruption 0% Temperature Cool (2) Movement Walking (260) Ox2 Location -8/Materials Parts ------- > --- POWER (1) -------- Reinforced Ion Engine > --- PROPULSION (4) --- Aluminum Leg > --- UTILITY (4) ------ Medium Storage Unit Experimental Sensor Array Utility Shielding PSU Rigger > --- WEAPON (2) ------- Assault Rifle Mini Grenade Launcher > --- INVENTORY (10) --- (None) Peak State ------------ > --- POWER ------------ Light Nuclear Core > --- PROPULSION ------- Aluminum Leg Aluminum Leg Aluminum Leg Aluminum Leg > --- UTILITY ---------- Medium Storage Unit Experimental Sensor Array Utility Shielding PSU Rigger > --- WEAPON ----------- Medium Laser Mini Grenade Launcher > --- INVENTORY -------- Light Ion Engine Light Ion Engine Light Ion Engine Light Ion Engine Reinforced Ion Engine Assault Rifle [Rating: 29] Favorites ----------- Power Light Nuclear Core Engine Ion Engine Power Core Light Nuclear Core Propulsion Aluminum Leg Leg Aluminum Leg Utility Medium Storage Unit Device PSU Rigger Storage Medium Storage Unit Protection Utility Shielding Weapon Medium Laser Energy Gun Medium Laser Ballistic Gun Assault Rifle Launcher Grenade Launcher Build | -11 -10 -10 -10 -9 -8 ------- Run | Yrd Mat Min Exi Min Mat Slots Evolved 4 | . . . . . 4 Power . | . . . . . . Propulsion 2 | . . . . . 2 Utility 2 | . . . . . 2 Weapon . | . . . . . . Parts Attached 19 | 6 2 . 1 4 6 Power 3 | 1 . . . 1 1 Engine 2 | 1 . . . . 1 Core 1 | . . . . 1 . Reactor . | . . . . . . Propulsion 4 | 2 . . . . 2 Treads . | . . . . . . Leg 4 | 2 . . . . 2 Wheel . | . . . . . . Hover . | . . . . . . Flight . | . . . . . . Utility 5 | 1 1 . 1 . 2 Device 2 | . . . 1 . 1 Storage 2 | 1 1 . . . . Processor . | . . . . . . Hackware . | . . . . . . Protection 1 | . . . . . 1 Artifact . | . . . . . . Weapon 7 | 2 1 . . 3 1 Energy Gun 2 | 1 . . . 1 . Energy Cannon . | . . . . . . Ballistic Gun 2 | 1 . . . . 1 Ballistic Cannon . | . . . . . . Launcher 3 | . 1 . . 2 . Special Weapon . | . . . . . . Impact Weapon . | . . . . . . Slashing Weapon . | . . . . . . Piercing Weapon . | . . . . . . Special Melee Weapon . | . . . . . . Unidentified Prototypes 1 | . . . . . 1 Parts Lost 5 | . . . . 2 3 Power . | . . . . . . Propulsion 2 | . . . . . 2 Utility . | . . . . . . Weapon 3 | . . . . 2 1 Highest Loss Streak 3 | . . . . 1 3 To Critical Strikes . | . . . . . . Average Slot Usage (%) 93 | . 85 85 93 97 94 Engine 6 | . 14 14 14 . 6 Core 7 | . . . . 13 2 Leg 28 | . 28 28 28 28 32 Device 10 | . . . 7 14 17 Storage 13 | . 14 14 14 14 9 Energy Gun 12 | . 14 14 14 11 8 Launcher 13 | . 12 14 14 14 9 Peak Build Rating 29 | 6 7 6 14 18 29 Average Rating 13 | 3 6 6 10 16 27 On Entrance 8 | . 6 6 6 14 18 Naked Turns . | . . . . . . Heaviest Build 27 | 14 20 20 22 23 27 Greatest Support 40 | 20 20 20 20 20 40 Greatest Overweight (x) 2 | . . . 1 1 2 Average Overweight (x) . | . . . . . . Largest Inventory Capacity 10 | 8 10 10 10 10 10 Average Capacity 9 | 6 9 10 10 10 10 Most Carried 10 | 5 6 6 6 10 9 Average Carried 6 | 2 5 6 6 8 4 Final Capacity 10 | 8 10 10 10 10 10 Final Carried 10 | 2 6 6 6 10 . Class Distribution -------------------- 94% | Mutant 5% | Skirmisher Dominant Class ---------------- Mutant | -10/Materials Mutant | -10/Mines Mutant | -10/Exiles Mutant | -9/Mines Skirmisher | -8/Materials Resources | -11 -10 -10 -10 -9 -8 ----------- Run | Yrd Mat Min Exi Min Mat Matter Collected 410 | 247 . . . 163 . Remotely . | . . . . . . Salvage Created 358 | . . 17 . 305 36 Parts 17 | . . 2 . 14 1 Haulers Intercepted . | . . . . . . Recyclers Shooed 2 | . . . . 1 1 Parts Field Recycled . | . . . . . . Retrieved Matter . | . . . . . . Parts Self-Destructed . | . . . . . . Prevented . | . . . . . . Kills | -11 -10 -10 -10 -9 -8 ------- Run | Yrd Mat Min Exi Min Mat Combat Hostiles Destroyed 14 | . . 3 . 10 1 Guns 3 | . . . . 3 . AOE 11 | . . 3 . 7 1 Classes Destroyed 3 | . . 1 . 2 . Recycler 2 | . . . . 2 . Swarmer 10 | . . 3 . 7 . Grunt 4 | . . . . 3 1 Best Kill Streak 3 | . . 3 . 3 1 Combat Bots Only 3 | . . 3 . 3 1 Max Kills in Single Turn 3 | . . 2 . 3 1 Gunslinging . | . . . . . . Exploded 3 | . . 2 . 3 1 Melee . | . . . . . . Uniques/NPCs Destroyed . | . . . . . . Combat | -11 -10 -10 -10 -9 -8 -------- Run | Yrd Mat Min Exi Min Mat Hostile Shots Fired 71 | . . 3 . 41 27 Missed 24 | . . 2 . 9 13 Damage Taken 800 | . . 7 . 340 453 Core 193 | . . 7 . 51 135 Absorbed by Shields . | . . . . . . Redirected to Shielding 21 | . . . . . 21 Core Remaining (%) 88 | 100 . . . 76 . Volleys Fired 56 | . . 3 . 38 15 Largest 2 | . . 2 . 2 2 Hottest 80 | . . 80 . 80 80 Shots Fired 60 | . . 4 . 39 17 Gun 47 | . . 2 . 34 11 Cannon . | . . . . . . Launcher 13 | . . 2 . 5 6 Special . | . . . . . . Kinetic . | . . . . . . Thermal 47 | . . 2 . 34 11 Explosive 13 | . . 2 . 5 6 Electromagnetic . | . . . . . . Robot Hit Streak 10 | . . 2 . 9 10 Robot Miss Streak 7 | . . 2 . 6 7 Penetration Max . | . . . . . . Secondary Targets . | . . . . . . Shots Hit Robots 41 | . . 2 . 26 13 Core Hits 20 | . . 2 . 16 2 Critical Kills . | . . . . . . Critical Parts Destroyed . | . . . . . . Critical Strikes 4 | . . . . 4 . Burn 4 | . . . . 4 . Melee Attacks . | . . . . . . Impact . | . . . . . . Slashing . | . . . . . . Piercing . | . . . . . . Sneak Attacks . | . . . . . . Combat Hostiles . | . . . . . . Follow-up Attacks . | . . . . . . Damage Inflicted 1204 | . . 192 . 679 333 Guns 399 | . . 13 . 287 99 Cannons . | . . . . . . Explosions 805 | . . 179 . 392 234 Melee . | . . . . . . Ramming . | . . . . . . Kinetic . | . . . . . . Thermal 399 | . . 13 . 287 99 Explosive 805 | . . 179 . 392 234 Electromagnetic . | . . . . . . Impact . | . . . . . . Slashing . | . . . . . . Piercing . | . . . . . . Highest Corruption . | . . . . . . Average Corruption . | . . . . . . Corruption Purged . | . . . . . . Corruption Blocked . | . . . . . . Overload Shots . | . . . . . . Overflow Damage 86 | . . 17 . 32 37 Projectiles . | . . . . . . Explosions 86 | . . 17 . 32 37 Melee . | . . . . . . Knockbacks . | . . . . . . Impact . | . . . . . . Kinetic . | . . . . . . Secondary . | . . . . . . Self-Inflicted Damage 166 | . . . . 24 142 Shots 5 | . . . . 2 3 Rammed . | . . . . . . Targets Rammed . | . . . . . . Kicked . | . . . . . . Crushed . | . . . . . . Highest Temperature 163 | . . 28 . 163 87 Average Temperature 51 | . . 15 . 58 38 Received Heat Transfer 192 | . . . . 93 99 Siege Activations . | . . . . . . Robots Corrupted . | . . . . . . Combat Hostiles . | . . . . . . Parts Fried . | . . . . . . Impact Corruptions . | . . . . . . Robots Melted . | . . . . . . Combat Hostiles . | . . . . . . Parts Melted 3 | . . 1 . . 2 Heat Transferred 1480 | . . 37 . 1147 296 Parts Sabotaged . | . . . . . . Parts Stolen . | . . . . . . Parts Stripped . | . . . . . . Power Chain Reactions . | . . . . . . Alert | -11 -10 -10 -10 -9 -8 ------- Run | Yrd Mat Min Exi Min Mat Peak Influence 131 | . . 78 . 131 42 Initial . | . . . . . . Average 46 | . . 77 . 63 4 Maximum Alert Level . | . . . . . . Low Security (%) 100 | 100 100 100 . 100 100 Level 1 . | . . . . . . Level 2 . | . . . . . . Level 3 . | . . . . . . Level 4 . | . . . . . . Level 5 . | . . . . . . High Security . | . . . . . . Max Security . | . . . . . . Squads Dispatched 1 | . 1 . . . . Investigation . | . . . . . . Extermination . | . . . . . . Reinforcement 1 | . 1 . . . . Assault . | . . . . . . Garrison . | . . . . . . Intercept . | . . . . . . Searches Triggered . | . . . . . . Construction Impeded . | . . . . . . Haulers Reinforced . | . . . . . . Active Scanning Responses . | . . . . . . Cargo Convoy Interrupts . | . . . . . . Stealth | -11 -10 -10 -10 -9 -8 --------- Run | Yrd Mat Min Exi Min Mat Distress Signals . | . . . . . . Communications Jammed . | . . . . . . Distress Signals . | . . . . . . Times Spotted 14 | . 1 1 . 9 3 Peak Tracking Total 4 | . 1 1 . 4 2 Tactical Retreats . | . . . . . . Traps | -11 -10 -10 -10 -9 -8 ------- Run | Yrd Mat Min Exi Min Mat Traps Triggered . | . . . . . . Indirectly . | . . . . . . Trap Hack Attempts . | . . . . . . Triggered . | . . . . . . Disarmed . | . . . . . . Reprogrammed . | . . . . . . Reused . | . . . . . . Traps Extracted . | . . . . . . Installed . | . . . . . . Triggered . | . . . . . . Objects Rigged 8 | . . . . 3 5 Exploded 6 | . . . . 3 3 Machines | -11 -10 -10 -10 -9 -8 ---------- Run | Yrd Mat Min Exi Min Mat Machines Disabled 1 | . . . . . 1 Max in Single Turn 1 | . . . . . 1 Machines Repaired . | . . . . . . Machines Dismantled . | . . . . . . Machines Sabotaged . | . . . . . . Overloaded Fab Kills . | . . . . . . Hacking | -11 -10 -10 -10 -9 -8 --------- Run | Yrd Mat Min Exi Min Mat Machines Accessed 2 | . 1 . 1 . . Terminals . | . . . . . . Fabricators . | . . . . . . Repair Stations . | . . . . . . Recycling Units 1 | . 1 . . . . Scanalyzers . | . . . . . . Garrison Access . | . . . . . . Total Hacks 3 | . 2 . 1 . . Successful 3 | . 2 . 1 . . Failed . | . . . . . . Catastrophic . | . . . . . . Database Lockouts . | . . . . . . Manual 2 | . 1 . 1 . . Terminals . | . . . . . . Fabricators . | . . . . . . Repair Stations . | . . . . . . Recycling Units 2 | . 2 . . . . Scanalyzers . | . . . . . . Garrison Access . | . . . . . . Terminal Hacks 1 | . . . 1 . . Derelict Proto ID Bank 1 | . . . 1 . . Fabricator Hacks . | . . . . . . Repair Station Hacks . | . . . . . . Recycling Unit Hacks 1 | . 1 . . . . Report Inventory 1 | . 1 . . . . Scanalyzer . | . . . . . . Garrison Access Hacks . | . . . . . . Unauthorized Hacks 1 | . 1 . . . . Terminals . | . . . . . . Fabricators . | . . . . . . Repair Stations . | . . . . . . Recycling Units 1 | . 1 . . . . Reject 1 | . 1 . . . . Scanalyzers . | . . . . . . Garrison Access . | . . . . . . Data Cores Recovered . | . . . . . . Used . | . . . . . . Hacking Detections . | . . . . . . Full Trace Events . | . . . . . . Feedback Events . | . . . . . . Feedback Blocked . | . . . . . . Robot Schematics Acquired . | . . . . . . Robots Built . | . . . . . . Authchips . | . . . . . . Time . | . . . . . . Total Robot Build Rating . | . . . . . . Part Schematics Acquired . | . . . . . . Parts Built . | . . . . . . Authchips . | . . . . . . Time . | . . . . . . Total Part Build Rating . | . . . . . . Parts Repaired . | . . . . . . Time . | . . . . . . Parts Recycled . | . . . . . . Recycled Matter . | . . . . . . Retrieved Matter . | . . . . . . Retrieved Components . | . . . . . . Parts Scanalyzed . | . . . . . . Part Schematics Acquired . | . . . . . . Parts Damaged . | . . . . . . Bothacking | -11 -10 -10 -10 -9 -8 ------------ Run | Yrd Mat Min Exi Min Mat Used RIF Installer . | . . . . . . Robots Hacked . | . . . . . . Non-combat . | . . . . . . Combat . | . . . . . . Robot Hacks Applied . | . . . . . . Relay Couplers Released . | . . . . . . Fabnet Peak Effective % . | . . . . . . Robots Rewired . | . . . . . . Allies Hacked . | . . . . . . Hacks Repelled . | . . . . . . Allies | -11 -10 -10 -10 -9 -8 -------- Run | Yrd Mat Min Exi Min Mat Total Allies 1 | . . 1 . . . Largest Group 1 | . . 1 1 . . Highest-Rated Group 31 | . . 31 31 . . Highest-Rated Ally 31 | . . 31 31 . . Total Orders . | . . . . . . Ally Attacks . | . . . . . . Total Damage . | . . . . . . Kills . | . . . . . . Allies Corrupted . | . . . . . . Allies Melted . | . . . . . . Intel | -11 -10 -10 -10 -9 -8 ------- Run | Yrd Mat Min Exi Min Mat Robot Analysis Total . | . . . . . . Derelict Logs Recovered 1 | . . . . 1 . Drone Launches . | . . . . . . Drone Recoveries . | . . . . . . Exploration | -11 -10 -10 -10 -9 -8 ------------- Run | Yrd Mat Min Exi Min Mat Turns Passed 1847 | 64 242 115 341 945 140 Spaces Moved 1121 | 44 196 85 215 556 25 Core 5 | 5 . . . . . Treads . | . . . . . . Legs 1116 | 39 196 85 215 556 25 Wheels . | . . . . . . Hover . | . . . . . . Flight . | . . . . . . Fastest Speed 50 | 50 120 120 120 120 120 Average Speed 135 | 112 120 120 153 137 134 Slowest Speed 260 | 120 120 120 190 190 260 Overloaded Moves . | . . . . . . Propulsion Burnouts . | . . . . . . Robots Hopped . | . . . . . . Cave-ins Triggered . | . . . . . . Exploration Rate (%) 32 | 3 29 27 41 91 5 Regions Visited 5 Branch Regions 3 Pre-discovered Areas 1 | . . 1 . . . Known Exits Taken . | . . . . . . Unknown Exits Taken 5 | 1 1 1 1 1 . Scrap Searched 3 | . . . . 3 . Spaces Dug 6 | . . . . 6 . Terrain Destroyed 87 | . . 11 . 36 40 Melee . | . . . . . . Projectile . | . . . . . . AOE 87 | . . 11 . 36 40 Terrain Rammed . | . . . . . . Walls Destroyed . | . . . . . . Machines Disabled . | . . . . . . Actions | -11 -10 -10 -10 -9 -8 --------- Run | Yrd Mat Min Exi Min Mat Total 1401 | 58 202 94 227 702 118 Wait 150 | 1 . 7 12 76 54 Move 1116 | 43 195 84 214 555 25 Hop . | . . . . . . Pick Up 32 | 8 4 . . 16 4 Fast Attach 2 | . 1 . 1 . . Attach 13 | 6 . . . 2 5 Detach . | . . . . . . Swap 4 | . 1 . . 2 1 Drop 20 | . 1 . . 10 9 Fire 56 | . . 3 . 38 15 Melee . | . . . . . . Ram . | . . . . . . Kick . | . . . . . . Crush . | . . . . . . Escape Stasis . | . . . . . . Rewire . | . . . . . . Trap 8 | . . . . 3 5 Miscellaneous . | . . . . . . Route ------- -11/Scrapyard -10/Materials -10/Mines (discovered 2 exits: [*Mat] / *Exi) -10/Exiles -9/Mines (discovered 2 exits: [*Mat x2]) -8/Materials History --------- Turn | Location | Event 4 | -11/Scrapyard | Discovered new exit (range 16) 65 | -11/Scrapyard | Entered Materials 285 | -10/Materials | Discovered new exit (range 7) 305 | -10/Materials | Build established: Mutant 307 | -10/Materials | Entered Mines 312 | -10/Mines | Escorted by a lone wolf Derelict 332 | -10/Mines | Learned location of Storage (-8) 402 | -10/Mines | Discovered new exit (range 7) 409 | -10/Mines | Deemed a non-threat by the Exiles lab entrance 410 | -10/Mines | Discovered new exit (range 5) 422 | -10/Mines | Entered Exiles 422 | -10/Exiles | Accompanied by 1 ally 464 | -10/Exiles | Met 8R-AWN 485 | -10/Exiles | Met EX-HEX 522 | -10/Exiles | Met EX-BIN 535 | -10/Exiles | Aligned with FarCom system 536 | -10/Exiles | Given EX-Vault access code 564 | -10/Exiles | Opened EX-Vault 570 | -10/Exiles | Found PSU Rigger 613 | -10/Exiles | Warned to stay clear of 0b10 Research branches 741 | -10/Exiles | Discovered new exit (range 14) 763 | -10/Exiles | Left Exiles lab with PSU Rigger 763 | -10/Exiles | Entered Mines 768 | -9/Mines | Met a Derelict bent on vengeance 1404 | -9/Mines | Found a damaged Exp. Sensor Array with a note attached 1407 | -9/Mines | Found Prototype Device 1477 | -9/Mines | Learned Materials stockpile data 1497 | -9/Mines | Found a hidden stash of uninstalled traps 1667 | -9/Mines | Discovered new exit (range 4) 1679 | -9/Mines | Discovered new exit (range 5) 1708 | -9/Mines | Entered Materials 1708 | -8/Materials | Evolved 4 slots: Propulsion x2, Utility x2 1711 | -8/Materials | Identified Exp. Sensor Array 1848 | -8/Materials | Self-destructed Last Messages --------------- 01814_ Aluminum Leg destroyed. 01819_ Dropped Rigged Lgt. Ion Engine. 01819_ Rigged Lgt. Ion Engine explodes. 01819_ Imp. Heat Sink melted. 01819_ Lgt. Nuclear Core melted. 01819_ G-47 Trooper destroyed. 01819_ R-06 Scavenger destroyed. 01820_ Dropped Rigged Lgt. Ion Engine. 01820_ Dropped Rigged Lgt. Nuclear Core. 01820_ Aluminum Leg severed. 01823_ Rigged Lgt. Ion Engine explodes. 01830_ Aluminum Leg destroyed. 01830_ Destroyed Aluminum Leg. 01833_ The unstable cave ceiling collapses. 01833_ Med. Laser destroyed. 01833_ Destroyed Med. Laser. 01836_ The unstable cave ceiling collapses. 01836_ Destroyed Katana. 01842_ Terminal disabled. 01847_ The unstable cave ceiling collapses. Map ----- +----------------------------------------------------+ | ?????????????????????????!???????? | | ?????????????????????????????????? | | ?????????????????????????????????? | | ?????????????????????????????????? | | ?????????????????????????????????? | | ???????????????[?????????????????? | | ?????????????????????????????????? | | ?????????????????????????????????? | | ?????????????????????????????????? | | ????? ?????????????????????????? | | ???? ?????????????????????????? | | ???? ?????????????????????????? | | ???? ?????????????????????????? | | ????# #????????????????????????? | | ????# #????????????????????????? | | ????# #????????????????????????? | | ????# #????????????????????????? | | ????# l#????????????????????????? | | ????# #????????????????????????? | | ????# ########?????????????????? | | ????# #// #?????????????????? | | ????# % ####??????????????? | | ????# # #???Y????????? | | ????# ! #????????????? | | ????# % # #????????????? | | ????# @ +????????????? | | ????# #g #????????????? | | ????### #????????????? | | ??????# " ??????????? | | ?????? * T" #?#?????????? | | ????? # ????????????? | | ???? # ????????????? | | ??? ! #? ???????????? | | ?? ! +?? ! ???????????? | | ?? #???!! ???????????? | | ? +????! ??????????? | | # #?????## ??????????? | | # #???????????????????? | | ?? !#???????????????????? | | ?????########????????????????????? | | | | | | | | | | | | | | | | | | | | | +----------------------------------------------------+ Best States ------------- Heat Dissipation 31 Energy Generation 14 Energy Capacity 265 Matter Stores 300 Matter Capacity 300 Sight Range 16 Robot Scan Range 20 Terrain Scan Density 10 Utility Shielding 33 Evasion (%) 55 Item Schematics ----------------- None Robot Schematics ------------------ None Fabricated ------------ Nothing Alien Tech Used ----------------- None Achievements -------------- None Challenges ------------ None Game ------ Seed PulseShadeTube Manual? 0 Play Time 00:15:59 Cumulative 17.1 hours Start 2025.03.20 @ 12:20:00 End 2025.03.20 @ 12:34:53 Sessions 1 Manual Loads 0 Difficulty Rogue Special Mode None Game No. 21 Rogue 20 Adventurer 1 Explorer 0 Win Type - Total 0 Types 0/0/0/0/0/0/0/0/0 Lore% 21 Gallery% 20 Achievement% 20 Wizard Run 0 Options --------- Layout 0 ASCII 0 Keyboard 0 Movement Mouse Keybinds 0 Fullscreen 1 Font 16/SmallcapsGlow Map View 75x55 Zoom Use 0% Tactical HUD 1 Map Filters NONE Filters NONE Steam 1 RUN: 375e3fcf-9459-4b04-8f44-dcc6f4d551a2